Workbook

Sheet Sales Data
B1: Sales Data
B3: OrderDate | C3: Region | D3: Category | E3: Product | F3: UnitPrice | G3: Quantity | H3: SalePrice
B4: 2022-07-01 | C4: East | D4: Cookies | E4: Chocolate Chip | F4: 1.87 | G4: 40 | H4: =PRODUCT(SalesTable[[#This Row],[UnitPrice]],SalesTable[[#This Row],[Quantity]]) -> 74.8
B5: 2022-07-02 | C5: East | D5: Bars | E5: Carrot | F5: 1.77 | G5: 78 | H5: =PRODUCT(SalesTable[[#This Row],[UnitPrice]],SalesTable[[#This Row],[Quantity]]) -> 138.06
B6: 2022-07-03 | C6: East | D6: Snacks | E6: Pretzels | F6: 3.15 | G6: 20 | H6: =PRODUCT(SalesTable[[#This Row],[UnitPrice]],SalesTable[[#This Row],[Quantity]]) -> 63
B7: 2022-07-04 | C7: East | D7: Bars | E7: Bran | F7: 1.87 | G7: 83 | H7: =PRODUCT(SalesTable[[#This Row],[UnitPrice]],SalesTable[[#This Row],[Quantity]]) -> 155.21
B8: 2022-07-05 | C8: East | D8: Cookies | E8: Oatmeal Raisin | F8: 2.84 | G8: 37 | H8: =PRODUCT(SalesTable[[#This Row],[UnitPrice]],SalesTable[[#This Row],[Quantity]]) -> 105.08
B9: 2022-07-06 | C9: East | D9: Cookies | E9: Chocolate Chip | F9: 1.87 | G9: 82 | H9: =PRODUCT(SalesTable[[#This Row],[UnitPrice]],SalesTable[[#This Row],[Quantity]]) -> 153.34
B10: 2022-07-07 | C10: West | D10: Bars | E10: Carrot | F10: 1.77 | G10: 58 | H10: =PRODUCT(SalesTable[[#This Row],[UnitPrice]],SalesTable[[#This Row],[Quantity]]) -> 102.66
B11: 2022-07-08 | C11: West | D11: Bars | E11: Bran | F11: 1.87 | G11: 46 | H11: =PRODUCT(SalesTable[[#This Row],[UnitPrice]],SalesTable[[#This Row],[Quantity]]) -> 86.02
B12: 2022-07-09 | C12: East | D12: Snacks | E12: Potato Chips | F12: 1.68 | G12: 47 | H12: =PRODUCT(SalesTable[[#This Row],[UnitPrice]],SalesTable[[#This Row],[Quantity]]) -> 78.96
B13: 2022-07-10 | C13: East | D13: Bars | E13: Carrot | F13: 1.77 | G13: 106 | H13: =PRODUCT(SalesTable[[#This Row],[UnitPrice]],SalesTable[[#This Row],[Quantity]]) -> 187.62
B14: 2022-07-11 | C14: West | D14: Bars | E14: Carrot | F14: 1.77 | G14: 22 | H14: =PRODUCT(SalesTable[[#This Row],[UnitPrice]],SalesTable[[#This Row],[Quantity]]) -> 38.94
B15: 2022-07-12 | C15: East | D15: Crackers | E15: Cheese | F15: 2.53 | G15: 23 | H15: =PRODUCT(SalesTable[[#This Row],[UnitPrice]],SalesTable[[#This Row],[Quantity]]) -> 58.19
B16: 2022-07-13 | C16: East | D16: Crackers | E16: Saltines | F16: 2.19 | G16: 55 | H16: =PRODUCT(SalesTable[[#This Row],[UnitPrice]],SalesTable[[#This Row],[Quantity]]) -> 120.45
B17: 2022-07-14 | C17: West | D17: Cookies | E17: Arrowroot | F17: 2.18 | G17: 25 | H17: =PRODUCT(SalesTable[[#This Row],[UnitPrice]],SalesTable[[#This Row],[Quantity]]) -> 54.5
B18: 2022-07-15 | C18: West | D18: Crackers | E18: Whole Wheat | F18: 3.49 | G18: 30 | H18: =PRODUCT(SalesTable[[#This Row],[UnitPrice]],SalesTable[[#This Row],[Quantity]]) -> 104.7
B19: 2022-07-16 | C19: West | D19: Bars | E19: Bran | F19: 1.87 | G19: 43 | H19: =PRODUCT(SalesTable[[#This Row],[UnitPrice]],SalesTable[[#This Row],[Quantity]]) -> 80.41
B20: 2022-07-17 | C20: East | D20: Crackers | E20: Whole Wheat | F20: 3.49 | G20: 36 | H20: =PRODUCT(SalesTable[[#This Row],[UnitPrice]],SalesTable[[#This Row],[Quantity]]) -> 125.64
B21: 2022-07-18 | C21: West | D21: Cookies | E21: Chocolate Chip | F21: 1.87 | G21: 95 | H21: =PRODUCT(SalesTable[[#This Row],[UnitPrice]],SalesTable[[#This Row],[Quantity]]) -> 177.65
B22: 2022-07-19 | C22: East | D22: Cookies | E22: Chocolate Chip | F22: 1.87 | G22: 80 | H22: =PRODUCT(SalesTable[[#This Row],[UnitPrice]],SalesTable[[#This Row],[Quantity]]) -> 149.6
B23: 2022-07-20 | C23: East | D23: Crackers | E23: Whole Wheat | F23: 3.49 | G23: 21 | H23: =PRODUCT(SalesTable[[#This Row],[UnitPrice]],SalesTable[[#This Row],[Quantity]]) -> 73.29
B24: 2022-07-21 | C24: East | D24: Bars | E24: Banana | F24: 2.27 | G24: 32 | H24: =PRODUCT(SalesTable[[#This Row],[UnitPrice]],SalesTable[[#This Row],[Quantity]]) -> 72.64
B25: 2022-07-22 | C25: West | D25: Bars | E25: Banana | F25: 2.27 | G25: 21 | H25: =PRODUCT(SalesTable[[#This Row],[UnitPrice]],SalesTable[[#This Row],[Quantity]]) -> 47.67
B26: 2022-07-23 | C26: East | D26: Cookies | E26: Oatmeal Raisin | F26: 2.84 | G26: 98 | H26: =PRODUCT(SalesTable[[#This Row],[UnitPrice]],SalesTable[[#This Row],[Quantity]]) -> 278.32
B27: 2022-07-24 | C27: West | D27: Bars | E27: Carrot | F27: 1.77 | G27: 174 | H27: =PRODUCT(SalesTable[[#This Row],[UnitPrice]],SalesTable[[#This Row],[Quantity]]) -> 307.98
B28: 2022-07-25 | C28: West | D28: Snacks | E28: Potato Chips | F28: 1.68 | G28: 57 | H28: =PRODUCT(SalesTable[[#This Row],[UnitPrice]],SalesTable[[#This Row],[Quantity]]) -> 95.76
B29: 2022-07-26 | C29: West | D29: Snacks | E29: Potato Chips | F29: 1.68 | G29: 26 | H29: =PRODUCT(SalesTable[[#This Row],[UnitPrice]],SalesTable[[#This Row],[Quantity]]) -> 43.68
B30: 2022-07-27 | C30: West | D30: Snacks | E30: Potato Chips | F30: 1.68 | G30: 114 | H30: =PRODUCT(SalesTable[[#This Row],[UnitPrice]],SalesTable[[#This Row],[Quantity]]) -> 191.52
B31: 2022-07-28 | C31: West | D31: Cookies | E31: Arrowroot | F31: 2.18 | G31: 144 | H31: =PRODUCT(SalesTable[[#This Row],[UnitPrice]],SalesTable[[#This Row],[Quantity]]) -> 313.92
B32: 2022-07-29 | C32: East | D32: Bars | E32: Bran | F32: 1.87 | G32: 34 | H32: =PRODUCT(SalesTable[[#This Row],[UnitPrice]],SalesTable[[#This Row],[Quantity]]) -> 63.58
B33: 2022-07-30 | C33: West | D33: Bars | E33: Carrot | F33: 1.77 | G33: 30 | H33: =PRODUCT(SalesTable[[#This Row],[UnitPrice]],SalesTable[[#This Row],[Quantity]]) -> 53.1
B34: 2022-07-31 | C34: East | D34: Snacks | E34: Potato Chips | F34: 1.68 | G34: 46 | H34: =PRODUCT(SalesTable[[#This Row],[UnitPrice]],SalesTable[[#This Row],[Quantity]]) -> 77.28
B35: 2022-08-01 | C35: West | D35: Crackers | E35: Whole Wheat | F35: 3.49 | G35: 21 | H35: =PRODUCT(SalesTable[[#This Row],[UnitPrice]],SalesTable[[#This Row],[Quantity]]) -> 73.29
B36: 2022-08-02 | C36: East | D36: Cookies | E36: Arrowroot | F36: 2.18 | G36: 128 | H36: =PRODUCT(SalesTable[[#This Row],[UnitPrice]],SalesTable[[#This Row],[Quantity]]) -> 279.04
B37: 2022-08-03 | C37: West | D37: Snacks | E37: Potato Chips | F37: 1.68 | G37: 41 | H37: =PRODUCT(SalesTable[[#This Row],[UnitPrice]],SalesTable[[#This Row],[Quantity]]) -> 68.88
B38: 2022-08-04 | C38: East | D38: Snacks | E38: Potato Chips | F38: 1.68 | G38: 30 | H38: =PRODUCT(SalesTable[[#This Row],[UnitPrice]],SalesTable[[#This Row],[Quantity]]) -> 50.4
B39: 2022-08-05 | C39: East | D39: Snacks | E39: Pretzels | F39: 3.15 | G39: 32 | H39: =PRODUCT(SalesTable[[#This Row],[UnitPrice]],SalesTable[[#This Row],[Quantity]]) -> 100.8
B40: 2022-08-06 | C40: West | D40: Cookies | E40: Oatmeal Raisin | F40: 2.84 | G40: 102 | H40: =PRODUCT(SalesTable[[#This Row],[UnitPrice]],SalesTable[[#This Row],[Quantity]]) -> 289.68
B41: 2022-08-07 | C41: West | D41: Cookies | E41: Oatmeal Raisin | F41: 2.84 | G41: 74 | H41: =PRODUCT(SalesTable[[#This Row],[UnitPrice]],SalesTable[[#This Row],[Quantity]]) -> 210.16
B42: 2022-08-08 | C42: East | D42: Bars | E42: Bran | F42: 1.87 | G42: 27 | H42: =PRODUCT(SalesTable[[#This Row],[UnitPrice]],SalesTable[[#This Row],[Quantity]]) -> 50.49
B43: 2022-08-09 | C43: East | D43: Snacks | E43: Potato Chips | F43: 1.68 | G43: 28 | H43: =PRODUCT(SalesTable[[#This Row],[UnitPrice]],SalesTable[[#This Row],[Quantity]]) -> 47.04
B44: 2022-08-10 | C44: West | D44: Bars | E44: Carrot | F44: 1.77 | G44: 37 | H44: =PRODUCT(SalesTable[[#This Row],[UnitPrice]],SalesTable[[#This Row],[Quantity]]) -> 65.49

Sheet Pivot Table
B2: Category | C2: Product | D2: Count
B3: Bars | D3: 791
C4: Banana | D4: 53
C5: Bran | D5: 233
C6: Carrot | D6: 505
B7: Cookies | D7: 905
C8: Arrowroot | D8: 297
C9: Chocolate Chip | D9: 297
C10: Oatmeal Raisin | D10: 311
B11: Crackers | D11: 186
C12: Cheese | D12: 23
C13: Saltines | D13: 55
C14: Whole Wheat | D14: 108
B15: Snacks | D15: 441
C16: Potato Chips | D16: 389
C17: Pretzels | D17: 52
B18: Grand Total | D18: 2323

Sheet Double Click
B2: Category | C2: Product | D2: Number
B3: Bars | D3: 791
B4: Cookies | D4: 905
B5: Crackers | D5: 186
B6: Snacks | D6: 441
B7: Grand Total | D7: 2323

Sheet Button
B2: Category | C2: Product | D2: Number
B3: Bars | D3: 791
B4: Cookies | D4: 905
B5: Crackers | D5: 186
B6: Snacks | D6: 441
B7: Grand Total | D7: 2323

Sheet Context Menu
B2: Category | C2: Product | D2: Number
B3: Bars | D3: 791
B4: Cookies | D4: 905
B5: Crackers | D5: 186
B6: Snacks | D6: 441
B7: Grand Total | D7: 2323

Sheet Keyboard Shortcuts
B2: Category | C2: Product | D2: Number
B3: Bars | D3: 791
B4: Cookies | D4: 905
B5: Crackers | D5: 186
B6: Snacks | D6: 441
B7: Grand Total | D7: 2323

Sheet VBA
B2: Category | C2: Product | D2: Number
B3: Bars | D3: 791
B4: Cookies | D4: 905
B5: Crackers | D5: 186
B6: Snacks | D6: 441
B7: Grand Total | D7: 2323
